[Event "New Zealand Championship 2023"]
[Site "Wellington"]
[Date "2023.01.10"]
[Round "9.6"]
[White "Cilia Vincenti, David"]
[Black "McLaren, Leonard J"]
[Result "1/2-1/2"]
[TimeControl "90 mins + 30 mins (after 40 moves), additional 30 secs per move"]
[WhiteTitle "CM"]
[BlackTitle "FM"]
[WhiteFideId "5600197"]
[BlackFideId "4300270"]
[WhiteElo "2136"]
[BlackElo "2265"]

1. d4 {[%clk 01:30:56]} {[%emt 00:00:03]} Nf6 {[%clk 01:30:56]} {[%emt
00:00:04]} 2. c4 {[%clk 01:31:19]} {[%emt 00:00:08]} e6 {[%clk 01:31:22]}
{[%emt 00:00:04]} 3. Nc3 {[%clk 01:31:42]} {[%emt 00:00:07]} Bb4 {[%clk
01:31:45]} {[%emt 00:00:08]} 4. Qc2 {[%clk 01:31:59]} {[%emt 00:00:11]} Nc6
{[%clk 01:32:01]} {[%emt 00:00:15]} 5. Nf3 {[%clk 01:31:48]} {[%emt 00:00:41]}
O-O {[%clk 01:32:15]} {[%emt 00:00:15]} 6. Bd2 {[%clk 01:32:08]} {[%emt
00:00:09]} d6 {[%clk 01:32:26]} {[%emt 00:00:20]} 7. a3 {[%clk 01:32:29]}
{[%emt 00:00:09]} Bxc3 {[%clk 01:32:51]} {[%emt 00:00:05]} 8. Bxc3 {[%clk
01:32:49]} {[%emt 00:00:10]} Qe7 {[%clk 01:33:14]} {[%emt 00:00:07]} 9. e4
{[%clk 01:32:49]} {[%emt 00:00:30]} e5 {[%clk 01:33:31]} {[%emt 00:00:14]} 10.
d5 {[%clk 01:33:12]} {[%emt 00:00:07]} Nb8 {[%clk 01:33:20]} {[%emt 00:00:40]}
11. Be2 {[%clk 01:33:09]} {[%emt 00:00:32]} a5 {[%clk 01:32:31]} {[%emt
00:01:20]} 12. O-O {[%clk 01:33:26]} {[%emt 00:00:12]} a4 {[%clk 01:27:41]}
{[%emt 00:05:21]} 13. c5 {[%clk 01:33:20]} {[%emt 00:00:37]} Bg4 {[%clk
01:27:06]} {[%emt 00:01:05]} 14. cxd6 {[%clk 01:33:14]} {[%emt 00:00:35]} cxd6
{[%clk 01:27:26]} {[%emt 00:00:11]} 15. Rae1 {[%clk 01:33:06]} {[%emt
00:00:37]} Rc8 {[%clk 01:23:58]} {[%emt 00:03:58]} 16. Nh4 {[%clk 01:32:06]}
{[%emt 00:01:30]} Bd7 {[%clk 01:18:15]} {[%emt 00:06:14]} 17. f4 {[%clk
01:24:49]} {[%emt 00:07:47]} Na6 {[%clk 01:11:20]} {[%emt 00:07:26]} 18. fxe5
{[%clk 01:22:26]} {[%emt 00:02:53]} dxe5 {[%clk 01:11:30]} {[%emt 00:00:20]} 19.
Nf5 {[%clk 01:19:36]} {[%emt 00:03:20]} Bxf5 {[%clk 01:05:23]} {[%emt
00:06:38]} 20. Rxf5 {[%clk 01:18:48]} {[%emt 00:01:18]} Ne8 {[%clk 01:04:14]}
{[%emt 00:01:39]} 21. Qxa4 {[%clk 01:07:39]} {[%emt 00:11:40]} f6 {[%clk
01:04:14]} {[%emt 00:00:29]} 22. Bxa6 {[%clk 00:55:43]} {[%emt 00:12:26]} Rxa6
{[%clk 01:03:52]} {[%emt 00:00:52]} 23. Qd1 {[%clk 00:49:37]} {[%emt 00:06:36]}
Qc5+ {[%clk 01:01:56]} {[%emt 00:02:36]} 24. Kh1 {[%clk 00:48:59]} {[%emt
00:00:57]} Nd6 {[%clk 01:01:26]} {[%emt 00:01:01]} 25. Rf3 {[%clk 00:39:42]}
{[%emt 00:09:46]} Qc4 {[%clk 00:55:16]} {[%emt 00:06:42]} 26. Rfe3 {[%clk
00:35:53]} {[%emt 00:04:18]} Rb6 {[%clk 00:53:24]} {[%emt 00:02:22]} 27. Bb4
{[%clk 00:31:29]} {[%emt 00:04:53]} Nb5 {[%clk 00:46:28]} {[%emt 00:07:27]} 28.
Qg4 {[%clk 00:30:19]} {[%emt 00:01:39]} f5 {[%clk 00:43:48]} {[%emt 00:03:11]}
29. Qxf5 {[%clk 00:26:58]} {[%emt 00:03:51]} Rf6 {[%clk 00:41:56]} {[%emt
00:02:22]} 30. b3 {[%clk 00:26:13]} {[%emt 00:01:15]} Qc2 {[%clk 00:39:08]}
{[%emt 00:03:18]} 31. Qxe5 {[%clk 00:20:58]} {[%emt 00:05:46]} Qf2 {[%clk
00:38:15]} {[%emt 00:01:23]} 32. h3 {[%clk 00:19:01]} {[%emt 00:02:26]} Nd4
{[%clk 00:34:53]} {[%emt 00:03:53]} 33. Qg3 {[%clk 00:13:19]} {[%emt 00:06:11]}
Rc2 {[%clk 00:33:30]} {[%emt 00:01:54]} 34. Qxf2 {[%clk 00:08:41]} {[%emt
00:05:07]} Rfxf2 {[%clk 00:33:50]} {[%emt 00:00:10]} 35. Rg3 {[%clk 00:08:34]}
{[%emt 00:00:36]} Ne2 {[%clk 00:33:01]} {[%emt 00:01:21]} 36. Rg4 {[%clk
00:07:32]} {[%emt 00:01:31]} h5 {[%clk 00:32:51]} {[%emt 00:00:40]} 37. Rg5
{[%clk 00:07:15]} {[%emt 00:00:47]} h4 {[%clk 00:29:24]} {[%emt 00:03:57]} 38.
Bd6 {[%clk 00:05:03]} {[%emt 00:02:42]} Rd2 {[%clk 00:26:42]} {[%emt 00:03:11]}
39. Be5 {[%clk 00:04:54]} {[%emt 00:00:40]} Rf7 {[%clk 00:25:09]} {[%emt
00:02:02]} 40. Rg4 {[%clk 00:33:14]} {[%emt 00:02:08]} Re7 {[%clk 00:54:25]}
{[%emt 00:01:17]} 41. Bh2 {[%clk 00:33:09]} {[%emt 00:00:33]} Nc3 {[%clk
00:51:30]} {[%emt 00:03:26]} 42. d6 {[%clk 00:32:41]} {[%emt 00:00:58]} Re6
{[%clk 00:50:48]} {[%emt 00:01:13]} 43. Rxh4 {[%clk 00:32:23]} {[%emt
00:00:48]} Nb5 {[%clk 00:47:28]} {[%emt 00:03:49]} 44. e5 {[%clk 00:31:59]}
{[%emt 00:00:54]} Nxd6 {[%clk 00:47:31]} {[%emt 00:00:28]} 45. Rc1 {[%clk
00:27:16]} {[%emt 00:05:13]} Nf5 {[%clk 00:47:27]} {[%emt 00:00:35]} 46. Rb4
{[%clk 00:25:18]} {[%emt 00:02:28]} b6 {[%clk 00:44:50]} {[%emt 00:03:07]} 47.
Rbc4 {[%clk 00:24:08]} {[%emt 00:01:39]} Rg6 {[%clk 00:44:05]} {[%emt
00:01:15]} 48. Rg4 {[%clk 00:24:17]} {[%emt 00:00:20]} Re6 {[%clk 00:42:28]}
{[%emt 00:02:07]} 49. Rg5 {[%clk 00:23:44]} {[%emt 00:01:03]} Nd4 {[%clk
00:41:31]} {[%emt 00:01:27]} 50. Bf4 {[%clk 00:22:49]} {[%emt 00:01:25]} Ra2
{[%clk 00:40:26]} {[%emt 00:01:36]} 51. Rc8+ {[%clk 00:22:34]} {[%emt
00:00:45]} Kh7 {[%clk 00:40:26]} {[%emt 00:00:31]} 52. Rc7 {[%clk 00:21:22]}
{[%emt 00:01:41]} Rg6 {[%clk 00:40:18]} {[%emt 00:00:38]} 53. Rxg6 {[%clk
00:20:57]} {[%emt 00:00:55]} Kxg6 {[%emt 00:01:23]} 54. Rd7 {[%clk 00:19:39]}
{[%emt 00:00:31]} Ne2 {[%clk 00:35:05]} {[%emt 00:03:37]} 55. Be3 {[%clk
00:18:04]} Rxa3 {[%clk 00:35:05]} 56. Rd6+ {[%clk 00:18:04]} {[%emt 00:05:35]}
Kf5 {[%clk 00:32:53]} {[%emt 00:03:16]} 57. Rxb6 Ng3+ 58. Kg1 {[%clk 00:15:36]}
Ke4 59. Bc5 {[%clk 00:15:36]} Ra1+ {[%clk 00:32:53]} 60. Kf2 {[%clk 00:15:36]}
Nh1+ {[%clk 00:32:53]} 61. Ke2 {[%clk 00:15:36]} Ra2+ {[%clk 00:32:53]} 62. Kd1
{[%clk 00:15:36]} Kxe5 {[%clk 00:32:53]} 63. Rg6 {[%clk 00:15:36]} Ke4 {[%clk
00:32:53]} 64. Rxg7 {[%clk 00:15:36]} Kd3 {[%clk 00:32:53]} 65. Kc1 {[%clk
00:15:36]} Rc2+ {[%clk 00:32:53]} 66. Kb1 {[%clk 00:15:36]} Rxc5 {[%clk
00:32:53]} 67. Kb2 {[%clk 00:15:36]} Nf2 {[%clk 00:32:53]} 68. h4 {[%clk
00:15:36]} Nd1+ {[%clk 00:21:06]} {[%emt 00:33:27]} 69. Ka3 {[%clk 00:07:59]}
{[%emt 00:00:21]} Nc3 {[%clk 00:18:57]} {[%emt 00:02:38]} 70. b4 {[%clk
00:07:37]} {[%emt 00:00:53]} Nb5+ {[%clk 00:14:08]} {[%emt 00:05:20]} 71. Ka4
{[%clk 00:07:12]} {[%emt 00:00:55]} Rh5 {[%clk 00:14:00]} {[%emt 00:00:36]} 72.
Rg5 {[%clk 00:05:27]} {[%emt 00:02:17]} Nc3+ {[%clk 00:14:16]} {[%emt
00:00:14]} 73. Kb3 {[%clk 00:05:32]} {[%emt 00:00:26]} Rxg5 {[%clk 00:12:04]}
{[%emt 00:02:42]} 74. hxg5 {[%clk 00:06:00]} {[%emt 00:00:03]} Kd4 {[%clk
00:10:38]} {[%emt 00:01:55]} 75. g6 {[%clk 00:06:18]} {[%emt 00:00:13]} Nd5
{[%clk 00:10:53]} 76. g7 {[%clk 00:06:18]} Ne7 {[%clk 00:10:53]} 77. Ka4 {[%clk
00:04:32]} {[%emt 00:03:23]} Ke5 {[%emt 00:04:30]} 78. b5 {[%clk 00:02:40]}
{[%emt 00:00:31]} Kf6 {[%clk 00:08:18]} 79. b6 {[%clk 00:02:40]} Kxg7 {[%clk
00:08:18]} 80. b7 {[%clk 00:02:40]} Nc6 {[%clk 00:08:18]} 81. Kb5 {[%clk
00:02:40]} Nb8 {[%clk 00:08:18]} 82. Ka4 {[%clk 00:01:51]} {[%emt 00:03:02]}
Nc6 {[%emt 00:00:20]} 83. Kb5 {[%clk 00:02:11]} {[%emt 00:00:06]} Nb8 {[%clk
00:09:12]} {[%emt 00:00:10]} 1/2-1/2

[Event "New Zealand Championship 2023"]
[Site "Wellington"]
[Date "2023.01.10"]
[Round "9.7"]
[White "Sole, Michael D"]
[Black "Tang, Hao"]
[Result "1-0"]
[TimeControl "90 mins + 30 mins (after 40 moves), additional 30 secs per move"]
[WhiteFideId "4309030"]
[BlackFideId "4311280"]
[WhiteElo "2142"]
[BlackElo "2133"]

1. e4 {[%clk 01:30:57]} {[%emt 00:00:02]} c5 {[%clk 01:30:56]} {[%emt
00:00:05]} 2. Nf3 {[%clk 01:30:22]} {[%emt 00:01:05]} d6 {[%clk 01:31:20]}
{[%emt 00:00:05]} 3. d4 {[%clk 01:30:42]} {[%emt 00:00:09]} cxd4 {[%clk
01:31:47]} {[%emt 00:00:03]} 4. Nxd4 {[%clk 01:31:00]} {[%emt 00:00:11]} Nf6
{[%clk 01:32:13]} {[%emt 00:00:05]} 5. Nc3 {[%clk 01:31:16]} {[%emt 00:00:15]}
g6 {[%clk 01:32:40]} {[%emt 00:00:02]} 6. Be3 {[%clk 01:30:38]} {[%emt
00:01:08]} Bg7 {[%clk 01:33:06]} {[%emt 00:00:04]} 7. f3 {[%clk 01:30:38]}
{[%emt 00:00:30]} a6 {[%clk 01:33:31]} {[%emt 00:00:05]} 8. Qd2 {[%clk
01:30:35]} {[%emt 00:00:33]} h5 {[%clk 01:33:57]} {[%emt 00:00:04]} 9. Be2
{[%clk 01:29:49]} {[%emt 00:01:16]} Nbd7 {[%clk 01:34:17]} {[%emt 00:00:10]} 10.
O-O {[%clk 01:27:56]} {[%emt 00:02:23]} Qc7 {[%clk 01:28:45]} {[%emt 00:05:59]}
11. a4 {[%clk 01:16:55]} {[%emt 00:11:35]} b6 {[%clk 01:25:49]} {[%emt
00:03:24]} 12. Nd5 {[%clk 01:11:13]} {[%emt 00:06:11]} Nxd5 {[%clk 01:26:08]}
{[%emt 00:00:11]} 13. exd5 {[%clk 01:11:27]} {[%emt 00:00:15]} Bb7 {[%emt
00:01:41]} 14. c4 {[%clk 01:11:03]} O-O {[%clk 01:21:29]} {[%emt 00:04:52]} 15.
a5 {[%clk 01:05:23]} {[%emt 00:06:12]} bxa5 {[%clk 01:14:05]} {[%emt 00:07:54]}
16. Nb3 {[%clk 01:05:01]} {[%emt 00:00:51]} Rab8 {[%clk 01:03:26]} {[%emt
00:11:09]} 17. Nxa5 {[%clk 01:02:52]} {[%emt 00:02:39]} Rfe8 {[%clk 01:02:37]}
{[%emt 00:01:19]} 18. Ra2 {[%clk 01:00:23]} {[%emt 00:02:59]} e6 {[%clk
01:02:17]} {[%emt 00:00:50]} 19. b4 {[%clk 00:52:49]} {[%emt 00:08:03]} exd5
{[%clk 00:58:11]} {[%emt 00:04:39]} 20. cxd5 {[%clk 00:52:23]} {[%emt
00:00:53]} Bc3 {[%clk 00:53:04]} {[%emt 00:05:37]} 21. Qc1 {[%clk 00:48:41]}
{[%emt 00:04:12]} Bxd5 {[%clk 00:50:41]} {[%emt 00:02:53]} 22. Rc2 {[%clk
00:45:01]} {[%emt 00:04:09]} Rxb4 {[%clk 00:50:33]} {[%emt 00:00:39]} 23. Rxc3
{[%clk 00:41:23]} {[%emt 00:04:08]} Qxa5 {[%clk 00:47:29]} {[%emt 00:03:34]} 24.
Rd1 {[%clk 00:35:50]} {[%emt 00:06:03]} Kh7 {[%clk 00:32:05]} {[%emt 00:15:54]}
25. Ra3 {[%clk 00:33:26]} {[%emt 00:02:54]} Ra4 {[%clk 00:27:18]} {[%emt
00:05:18]} 26. Rxa4 {[%clk 00:32:31]} {[%emt 00:01:25]} Qxa4 {[%clk 00:27:36]}
{[%emt 00:00:14]} 27. Rxd5 {[%clk 00:32:26]} {[%emt 00:00:32]} Qb3 {[%clk
00:20:12]} {[%emt 00:07:53]} 28. Rd3 {[%clk 00:31:03]} {[%emt 00:01:53]} Qa2
{[%clk 00:18:26]} {[%emt 00:02:17]} 29. Kf2 {[%clk 00:28:21]} {[%emt 00:03:12]}
Nc5 {[%clk 00:16:10]} {[%emt 00:02:45]} 30. Ra3 {[%clk 00:26:40]} {[%emt
00:02:11]} Qe6 {[%clk 00:16:01]} {[%emt 00:00:40]} 31. Bc4 {[%clk 00:23:53]}
{[%emt 00:03:17]} Qf5 {[%clk 00:16:05]} {[%emt 00:00:27]} 32. Bxa6 {[%clk
00:20:20]} {[%emt 00:04:04]} Nxa6 {[%clk 00:15:49]} {[%emt 00:00:45]} 33. Rxa6
{[%clk 00:20:28]} {[%emt 00:00:21]} Rc8 {[%clk 00:16:15]} {[%emt 00:00:04]} 34.
Rc6 {[%clk 00:19:01]} {[%emt 00:01:58]} Rxc6 {[%clk 00:14:40]} {[%emt
00:02:05]} 35. Qxc6 {[%clk 00:17:30]} {[%emt 00:02:01]} Qe5 {[%clk 00:14:59]}
{[%emt 00:00:10]} 36. Qb7 {[%clk 00:13:31]} {[%emt 00:04:29]} Kg8 {[%clk
00:14:03]} {[%emt 00:01:25]} 37. Qb8+ {[%clk 00:11:24]} {[%emt 00:02:38]} Kh7
{[%clk 00:13:38]} {[%emt 00:00:56]} 38. g3 {[%clk 00:07:26]} {[%emt 00:04:28]}
h4 {[%clk 00:12:53]} {[%emt 00:01:15]} 39. Qb3 {[%clk 00:04:26]} {[%emt
00:03:30]} d5 {[%clk 00:08:02]} {[%emt 00:05:21]} 40. Qd3 {[%clk 00:33:43]}
{[%emt 00:01:13]} hxg3+ {[%clk 00:35:40]} {[%emt 00:02:52]} 41. hxg3 {[%clk
00:33:56]} {[%emt 00:00:16]} Qe6 {[%clk 00:32:46]} {[%emt 00:03:25]} 42. Qd4
{[%clk 00:29:57]} {[%emt 00:04:28]} Qf5 {[%clk 00:30:51]} {[%emt 00:02:25]} 43.
Qf4 {[%clk 00:26:47]} {[%emt 00:03:40]} Qc2+ {[%clk 00:28:21]} {[%emt
00:03:01]} 44. Bd2 {[%clk 00:27:09]} {[%emt 00:00:07]} Kg8 {[%clk 00:27:19]}
{[%emt 00:01:31]} 45. Qe3 {[%clk 00:26:38]} {[%emt 00:01:01]} Qf5 {[%clk
00:25:33]} {[%emt 00:02:16]} 46. Kg2 {[%clk 00:25:55]} {[%emt 00:01:14]} Qc2
{[%clk 00:24:47]} {[%emt 00:01:15]} 47. Qe8+ {[%clk 00:24:39]} {[%emt
00:01:47]} Kg7 {[%clk 00:24:22]} {[%emt 00:00:55]} 48. Qe5+ {[%clk 00:24:51]}
{[%emt 00:00:18]} Kh7 {[%clk 00:23:44]} {[%emt 00:01:07]} 49. Qxd5 {[%clk
00:24:54]} {[%emt 00:00:27]} Kg8 {[%clk 00:23:43]} {[%emt 00:00:31]} 50. Qd4
{[%clk 00:24:31]} {[%emt 00:00:52]} Qa2 {[%clk 00:23:24]} {[%emt 00:00:47]} 51.
Qe3 {[%clk 00:24:27]} {[%emt 00:00:36]} Qc4 {[%clk 00:23:07]} {[%emt 00:00:45]}
52. Qf2 {[%clk 00:23:59]} {[%emt 00:01:00]} Qd3 {[%clk 00:23:10]} {[%emt
00:00:27]} 53. Be3 {[%clk 00:23:56]} {[%emt 00:00:34]} Qc4 {[%clk 00:23:12]}
{[%emt 00:00:27]} 54. Qd2 {[%clk 00:24:10]} {[%emt 00:00:17]} Qb3 {[%clk
00:22:49]} {[%emt 00:00:53]} 55. Bd4 {[%clk 00:23:38]} {[%emt 00:01:01]} Qb1
{[%clk 00:21:05]} {[%emt 00:02:15]} 56. Bc3 {[%clk 00:23:38]} {[%emt 00:00:30]}
Kh7 {[%clk 00:16:57]} {[%emt 00:04:37]} 57. Qd4 {[%clk 00:22:17]} {[%emt
00:01:51]} Qc2+ {[%clk 00:16:49]} {[%emt 00:00:39]} 58. Kh3 {[%clk 00:21:08]}
{[%emt 00:01:39]} Qf5+ {[%clk 00:16:54]} {[%emt 00:00:25]} 59. Qg4 {[%clk
00:19:53]} {[%emt 00:01:45]} 1-0

[Event "New Zealand Championship 2023"]
[Site "Wellington"]
[Date "2023.01.10"]
[Round "9.8"]
[White "Hague, Ben"]
[Black "Dive, Russell J"]
[Result "1/2-1/2"]
[TimeControl "90 mins + 30 mins (after 40 moves), additional 30 secs per move"]
[WhiteTitle "FM"]
[BlackTitle "IM"]
[WhiteFideId "405647"]
[BlackFideId "4300106"]
[WhiteElo "2494"]
[BlackElo "2350"]

1. d4 {[%clk 01:30:56]} {[%emt 00:00:02]} Nf6 {[%clk 01:30:53]} {[%emt
00:00:07]} 2. Nf3 {[%clk 01:31:22]} {[%emt 00:00:05]} d5 {[%clk 01:31:15]}
{[%emt 00:00:08]} 3. e3 {[%clk 01:31:45]} {[%emt 00:00:07]} c6 {[%clk
01:31:33]} {[%emt 00:00:12]} 4. c4 {[%clk 01:31:59]} {[%emt 00:00:15]} e6
{[%clk 01:31:46]} {[%emt 00:00:18]} 5. Nc3 {[%clk 01:32:19]} {[%emt 00:00:09]}
a6 {[%clk 01:32:07]} {[%emt 00:00:10]} 6. cxd5 {[%clk 01:31:51]} {[%emt
00:00:58]} exd5 {[%clk 01:32:25]} {[%emt 00:00:12]} 7. Bd3 {[%clk 01:32:10]}
{[%emt 00:00:11]} Bd6 {[%clk 01:31:46]} {[%emt 00:01:10]} 8. O-O {[%clk
01:32:21]} {[%emt 00:00:17]} O-O {[%clk 01:32:09]} {[%emt 00:00:08]} 9. e4
{[%clk 01:31:28]} {[%emt 00:01:24]} dxe4 {[%clk 01:32:27]} {[%emt 00:00:12]} 10.
Nxe4 {[%clk 01:31:51]} {[%emt 00:00:06]} Nxe4 {[%clk 01:32:47]} {[%emt
00:00:10]} 11. Bxe4 {[%clk 01:32:14]} {[%emt 00:00:06]} 1/2-1/2

[Event "New Zealand Championship 2023"]
[Site "Wellington"]
[Date "2023.01.10"]
[Round "9.9"]
[White "Ning, Isabelle Yixuan"]
[Black "Braganza, Nadia"]
[Result "1-0"]
[TimeControl "90 mins + 30 mins (after 40 moves), additional 30 secs per move"]
[WhiteTitle "WCM"]
[BlackTitle "WCM"]
[WhiteFideId "4307763"]
[BlackFideId "4305337"]
[WhiteElo "2109"]
[BlackElo "1838"]

1. d4 {[%clk 01:30:58]} {[%emt 00:00:01]} d5 {[%clk 01:30:52]} {[%emt
00:00:09]} 2. c4 {[%clk 01:31:24]} {[%emt 00:00:04]} e6 {[%clk 01:31:20]}
{[%emt 00:00:03]} 3. Nc3 {[%clk 01:31:49]} {[%emt 00:00:04]} Nf6 {[%clk
01:31:41]} {[%emt 00:00:08]} 4. cxd5 {[%clk 01:32:09]} {[%emt 00:00:10]} exd5
{[%clk 01:32:07]} {[%emt 00:00:05]} 5. Bg5 {[%clk 01:32:31]} {[%emt 00:00:07]}
c6 {[%clk 01:32:24]} {[%emt 00:00:13]} 6. Qc2 {[%clk 01:32:46]} {[%emt
00:00:15]} Bd6 {[%clk 01:32:14]} {[%emt 00:00:40]} 7. e3 {[%clk 01:32:31]}
{[%emt 00:00:45]} O-O {[%clk 01:32:26]} {[%emt 00:00:19]} 8. Bd3 {[%clk
01:31:53]} {[%emt 00:01:07]} h6 {[%clk 01:32:43]} {[%emt 00:00:14]} 9. Bh4
{[%clk 01:31:55]} {[%emt 00:00:28]} a5 {[%clk 01:32:54]} {[%emt 00:00:19]} 10.
Nge2 {[%clk 01:24:53]} {[%emt 00:07:31]} Re8 {[%clk 01:33:00]} {[%emt
00:00:24]} 11. Bg3 {[%clk 01:20:02]} {[%emt 00:05:20]} Na6 {[%clk 01:31:09]}
{[%emt 00:02:22]} 12. a3 {[%clk 01:19:06]} {[%emt 00:01:27]} Nc7 {[%clk
01:29:53]} {[%emt 00:01:47]} 13. O-O {[%clk 01:15:55]} {[%emt 00:03:38]} Nh5
{[%clk 01:25:30]} {[%emt 00:04:53]} 14. Na4 {[%clk 01:07:27]} {[%emt 00:08:58]}
Nxg3 {[%clk 01:05:32]} {[%emt 00:20:29]} 15. hxg3 {[%clk 01:05:17]} {[%emt
00:02:40]} Ne6 {[%clk 01:04:14]} {[%emt 00:01:49]} 16. Nc5 {[%clk 00:57:08]}
{[%emt 00:08:38]} Nxc5 {[%clk 00:54:10]} {[%emt 00:10:34]} 17. dxc5 {[%clk
00:57:31]} {[%emt 00:00:07]} Be5 {[%clk 00:54:17]} {[%emt 00:00:23]} 18. Nd4
{[%clk 00:55:32]} {[%emt 00:02:29]} Qf6 {[%clk 00:53:20]} {[%emt 00:01:27]} 19.
Qd2 {[%clk 00:50:16]} {[%emt 00:05:51]} Kh8 {[%clk 00:51:52]} {[%emt 00:01:53]}
20. Bc2 {[%clk 00:47:07]} {[%emt 00:03:39]} Bd7 {[%clk 00:25:45]} {[%emt
00:26:37]} 21. Rab1 {[%clk 00:42:59]} {[%emt 00:04:37]} g6 {[%clk 00:18:28]}
{[%emt 00:07:48]} 22. b4 {[%clk 00:40:17]} {[%emt 00:03:12]} axb4 {[%clk
00:18:33]} {[%emt 00:00:26]} 23. Qxb4 {[%clk 00:37:59]} {[%emt 00:02:47]} Reb8
{[%clk 00:18:38]} {[%emt 00:00:25]} 24. a4 {[%clk 00:35:08]} {[%emt 00:03:21]}
Bc7 {[%clk 00:16:17]} {[%emt 00:02:51]} 25. Rfc1 {[%clk 00:15:30]} {[%emt
00:20:07]} h5 {[%clk 00:12:50]} {[%emt 00:04:00]} 26. Nf3 {[%clk 00:14:47]}
{[%emt 00:01:10]} Bg4 {[%clk 00:12:55]} {[%emt 00:00:26]} 27. Qd4 {[%clk
00:13:51]} {[%emt 00:01:25]} Kg7 {[%clk 00:12:40]} {[%emt 00:00:45]} 28. Qxf6+
{[%clk 00:09:50]} {[%emt 00:04:31]} Kxf6 {[%clk 00:13:06]} {[%emt 00:00:04]} 29.
Nd4 {[%clk 00:09:12]} {[%emt 00:01:08]} Ba5 {[%clk 00:13:11]} {[%emt 00:00:25]}
30. Rb3 {[%clk 00:07:51]} {[%emt 00:01:51]} Bd8 {[%clk 00:07:00]} {[%emt
00:06:42]} 31. Rcb1 {[%clk 00:06:21]} {[%emt 00:01:59]} Rxa4 {[%clk 00:06:08]}
{[%emt 00:01:22]} 32. Nxc6 {[%clk 00:05:23]} {[%emt 00:01:28]} Rc8 {[%clk
00:05:38]} {[%emt 00:00:59]} 33. Nxd8 {[%clk 00:05:45]} {[%emt 00:00:08]} Rxd8
{[%clk 00:06:06]} {[%emt 00:00:03]} 34. Rb6+ {[%clk 00:06:09]} {[%emt
00:00:06]} 1-0